[Event "*** Titled Tuesday Blitz"]
[Site "Chess.com"]
[Date "2020.11.03"]
[Round "7"]
[White "anpospan"]
[Black "AliKa2810"]
[Result "0-1"]
[WhiteElo "2394"]
[BlackElo "2562"]
[TimeControl "180+1"]
[EndTime "11:22:36 PST"]
[Termination "AliKa2810 won on time"]

1. Nf3 {[%clk 0:03:00.9]} 1... d5 {[%clk 0:02:57.2]} 2. g3 {[%clk 0:03:01.2]}
2... Nc6 {[%clk 0:02:57]} 3. Bg2 {[%clk 0:03:01.6]} 3... e5 {[%clk 0:02:56.5]}
4. d3 {[%clk 0:03:01]} 4... Nf6 {[%clk 0:02:55]} 5. O-O {[%clk 0:03:00.7]} 5...
Bd6 {[%clk 0:02:55.1]} 6. c4 {[%clk 0:02:53]} 6... d4 {[%clk 0:02:50.4]} 7. e3
{[%clk 0:02:42.3]} 7... O-O {[%clk 0:02:50.5]} 8. exd4 {[%clk 0:02:39.5]} 8...
exd4 {[%clk 0:02:51.4]} 9. Bg5 {[%clk 0:02:36.1]} 9... Bf5 {[%clk 0:02:46.5]}
10. Nh4 {[%clk 0:02:30.9]} 10... Be6 {[%clk 0:02:28.5]} 11. Bxc6 {[%clk
0:02:24.6]} 11... bxc6 {[%clk 0:02:28.2]} 12. Qf3 {[%clk 0:02:23.5]} 12... Be7
{[%clk 0:02:24.5]} 13. Nf5 {[%clk 0:01:54.5]} 13... Bxf5 {[%clk 0:02:21.3]} 14.
Qxf5 {[%clk 0:01:54.3]} 14... Rb8 {[%clk 0:02:20.4]} 15. b3 {[%clk 0:01:52.8]}
15... Nd7 {[%clk 0:02:18.8]} 16. Bxe7 {[%clk 0:01:50.3]} 16... Qxe7 {[%clk
0:02:19.7]} 17. Nd2 {[%clk 0:01:47.5]} 17... Nc5 {[%clk 0:02:19.7]} 18. Rae1
{[%clk 0:01:42.9]} 18... Qd6 {[%clk 0:02:19.3]} 19. Ne4 {[%clk 0:01:38.7]} 19...
Nxe4 {[%clk 0:02:19.1]} 20. Rxe4 {[%clk 0:01:38.1]} 20... g6 {[%clk 0:02:11.4]}
21. Qa5 {[%clk 0:01:16.6]} 21... f5 {[%clk 0:01:53.4]} 22. Re2 {[%clk
0:01:15.7]} 22... f4 {[%clk 0:01:53.5]} 23. Qe5 {[%clk 0:01:06.3]} 23... fxg3
{[%clk 0:01:34.2]} 24. fxg3 {[%clk 0:00:56.6]} 24... Rxf1+ {[%clk 0:01:32.1]}
25. Kxf1 {[%clk 0:00:56.6]} 25... Rf8+ {[%clk 0:01:32]} 26. Kg2 {[%clk 0:00:56]}
26... Qa3 {[%clk 0:01:06.7]} 27. Qe6+ {[%clk 0:00:43.8]} 27... Kh8 {[%clk
0:01:06.4]} 28. Qe5+ {[%clk 0:00:29.4]} 28... Kg8 {[%clk 0:01:05.9]} 29. Qxd4
{[%clk 0:00:29.7]} 29... Qc1 {[%clk 0:01:05.1]} 30. Rf2 {[%clk 0:00:29.8]} 30...
Rxf2+ {[%clk 0:00:57.1]} 31. Qxf2 {[%clk 0:00:29.5]} 31... Qb1 {[%clk 0:00:55]}
32. Qe2 {[%clk 0:00:29]} 32... Kf7 {[%clk 0:00:49]} 33. d4 {[%clk 0:00:28.9]}
33... Kg7 {[%clk 0:00:38.9]} 34. d5 {[%clk 0:00:26.1]} 34... cxd5 {[%clk
0:00:38.1]} 35. cxd5 {[%clk 0:00:26.2]} 35... Qf5 {[%clk 0:00:35.9]} 36. Qe7+
{[%clk 0:00:23.7]} 36... Kh6 {[%clk 0:00:34.3]} 37. Qh4+ {[%clk 0:00:22.6]}
37... Kg7 {[%clk 0:00:34.1]} 38. Qd4+ {[%clk 0:00:22.4]} 38... Kg8 {[%clk
0:00:33]} 39. Qc4 {[%clk 0:00:19.8]} 39... Kf8 {[%clk 0:00:29.4]} 40. Qc5+
{[%clk 0:00:19.3]} 40... Kg8 {[%clk 0:00:29.5]} 41. Qc4 {[%clk 0:00:17.9]} 41...
Kh8 {[%clk 0:00:19.7]} 42. a4 {[%clk 0:00:17.5]} 42... Qe5 {[%clk 0:00:18.1]}
43. h4 {[%clk 0:00:16.3]} 43... Qb2+ {[%clk 0:00:17.7]} 44. Kh3 {[%clk
0:00:15.8]} 44... Qe5 {[%clk 0:00:17.4]} 45. Qc6 {[%clk 0:00:14]} 45... Qf5+
{[%clk 0:00:16.7]} 46. Kg2 {[%clk 0:00:13.6]} 46... Qe4+ {[%clk 0:00:16.9]} 47.
Kf2 {[%clk 0:00:13.4]} 47... Qd4+ {[%clk 0:00:16.3]} 48. Kf3 {[%clk 0:00:13.4]}
48... Qd3+ {[%clk 0:00:16.1]} 49. Kf4 {[%clk 0:00:12.8]} 49... Qxb3 {[%clk
0:00:15.3]} 50. Ke5 {[%clk 0:00:12]} 50... Qxg3+ {[%clk 0:00:14.8]} 51. Ke6
{[%clk 0:00:11.8]} 51... Qg4+ {[%clk 0:00:12.6]} 52. Kf7 {[%clk 0:00:09.5]}
52... Qf4+ {[%clk 0:00:09.9]} 53. Ke7 {[%clk 0:00:08.9]} 53... Qxh4+ {[%clk
0:00:09.6]} 54. Kd7 {[%clk 0:00:08.7]} 54... Qg4+ {[%clk 0:00:09.7]} 55. Kxc7
{[%clk 0:00:08.5]} 55... h5 {[%clk 0:00:09.7]} 56. d6 {[%clk 0:00:08.5]} 56...
Qf4 {[%clk 0:00:09.1]} 57. Qe8+ {[%clk 0:00:07.6]} 57... Kh7 {[%clk 0:00:09.4]}
58. Qe7+ {[%clk 0:00:07.8]} 58... Kh6 {[%clk 0:00:09.9]} 59. Kd8 {[%clk
0:00:08.1]} 59... h4 {[%clk 0:00:09]} 60. Ke8 {[%clk 0:00:07.6]} 60... h3 {[%clk
0:00:08.9]} 61. d7 {[%clk 0:00:06.6]} 61... Qxa4 {[%clk 0:00:09]} 62. Qf8+
{[%clk 0:00:04.7]} 62... Kh5 {[%clk 0:00:08.4]} 63. Qf3+ {[%clk 0:00:04.6]}
63... Kh4 {[%clk 0:00:08.3]} 64. Qf2+ {[%clk 0:00:04.7]} 64... Kg4 {[%clk
0:00:08]} 65. Qg1+ {[%clk 0:00:04.8]} 65... Kh5 {[%clk 0:00:07.7]} 66. Qg3
{[%clk 0:00:02.9]} 66... Qe4+ {[%clk 0:00:06.2]} 67. Kf8 {[%clk 0:00:02.1]}
67... Qf5+ {[%clk 0:00:05.2]} 68. Ke7 {[%clk 0:00:02.2]} 68... Qc5+ {[%clk
0:00:04.7]} 69. Ke8 {[%clk 0:00:02.3]} 69... Qc6 {[%clk 0:00:02]} 70. Qxh3+
{[%clk 0:00:01.8]} 70... Kg5 {[%clk 0:00:02.9]} 71. Qg3+ {[%clk 0:00:02.1]}
71... Kf6 {[%clk 0:00:03.2]} 72. Qf4+ {[%clk 0:00:01.7]} 72... Ke6 {[%clk
0:00:02.9]} 73. Qe3+ {[%clk 0:00:01.5]} 73... Kf6 {[%clk 0:00:03.3]} 74. Qd4+
{[%clk 0:00:01.1]} 74... Ke6 {[%clk 0:00:03.7]} 0-1

[Event "*** Titled Tuesday Blitz"]
[Site "Chess.com"]
[Date "2020.11.03"]
[Round "7"]
[White "Zkid"]
[Black "AndrewMaco"]
[Result "0-1"]
[WhiteElo "2778"]
[BlackElo "2677"]
[TimeControl "180+1"]
[EndTime "11:22:39 PST"]
[Termination "AndrewMaco won by resignation"]

1. e4 {[%clk 0:03:00.9]} 1... c5 {[%clk 0:02:56.4]} 2. Nf3 {[%clk 0:02:58.6]}
2... d6 {[%clk 0:02:56.3]} 3. d4 {[%clk 0:02:58.4]} 3... cxd4 {[%clk 0:02:56.8]}
4. Nxd4 {[%clk 0:02:59.3]} 4... Nf6 {[%clk 0:02:57]} 5. f3 {[%clk 0:02:58.9]}
5... e5 {[%clk 0:02:56.5]} 6. Nb3 {[%clk 0:02:58.7]} 6... d5 {[%clk 0:02:57]} 7.
Bg5 {[%clk 0:02:58.3]} 7... dxe4 {[%clk 0:02:56.9]} 8. Qxd8+ {[%clk 0:02:55.8]}
8... Kxd8 {[%clk 0:02:57.8]} 9. fxe4 {[%clk 0:02:55.8]} 9... Be6 {[%clk
0:02:58.5]} 10. Nc3 {[%clk 0:02:46.2]} 10... Nd7 {[%clk 0:02:57.6]} 11. Be2
{[%clk 0:02:41.2]} 11... Be7 {[%clk 0:02:55.9]} 12. Nd2 {[%clk 0:02:33.6]} 12...
Ng4 {[%clk 0:02:43.3]} 13. Bxe7+ {[%clk 0:02:28.5]} 13... Kxe7 {[%clk 0:02:40]}
14. Bxg4 {[%clk 0:02:28.7]} 14... Bxg4 {[%clk 0:02:40.7]} 15. Nd5+ {[%clk
0:02:29]} 15... Kd8 {[%clk 0:02:39.2]} 16. Nc4 {[%clk 0:02:18.6]} 16... f6
{[%clk 0:02:18.7]} 17. Nd6 {[%clk 0:02:16.2]} 17... Be6 {[%clk 0:02:01.6]} 18.
Nxb7+ {[%clk 0:02:15.7]} 18... Kc8 {[%clk 0:01:55.5]} 19. Nd6+ {[%clk
0:02:14.5]} 19... Kb8 {[%clk 0:01:55]} 20. O-O-O {[%clk 0:02:10.4]} 20... Nb6
{[%clk 0:01:50.8]} 21. Rhe1 {[%clk 0:01:53.5]} 21... Rd8 {[%clk 0:01:47]} 22.
Nb4 {[%clk 0:01:52.7]} 22... Kc7 {[%clk 0:01:36.7]} 23. Nb5+ {[%clk 0:01:41.9]}
23... Kb7 {[%clk 0:01:36.9]} 24. b3 {[%clk 0:01:35.5]} 24... a5 {[%clk
0:01:26.4]} 25. Nd3 {[%clk 0:01:33.4]} 25... Kc6 {[%clk 0:01:26.5]} 26. a4
{[%clk 0:01:31.1]} 26... h5 {[%clk 0:01:11.9]} 27. h4 {[%clk 0:01:25.7]} 27...
Nd7 {[%clk 0:01:06.1]} 28. Nb4+ {[%clk 0:01:06.1]} 28... Kb7 {[%clk 0:00:59.1]}
29. Nd5 {[%clk 0:00:48.4]} 29... Bg4 {[%clk 0:00:33.6]} 30. Rd3 {[%clk
0:00:47.2]} 30... Nb6 {[%clk 0:00:29.8]} 31. Nxb6 {[%clk 0:00:40.8]} 31... Kxb6
{[%clk 0:00:30.7]} 32. Nd6 {[%clk 0:00:35.6]} 32... Kc6 {[%clk 0:00:23.1]} 33.
Nc4 {[%clk 0:00:34.6]} 33... Rxd3 {[%clk 0:00:22.8]} 34. cxd3 {[%clk 0:00:34.8]}
34... Kc5 {[%clk 0:00:23.7]} 35. Kc2 {[%clk 0:00:30.5]} 35... Kb4 {[%clk
0:00:22.6]} 36. Kb2 {[%clk 0:00:26.9]} 36... Rd8 {[%clk 0:00:20.5]} 37. Re3
{[%clk 0:00:22.9]} 37... Rd7 {[%clk 0:00:15.7]} 38. Nb6 {[%clk 0:00:19.8]} 38...
Rb7 {[%clk 0:00:15.8]} 39. Nd5+ {[%clk 0:00:19.4]} 39... Kc5 {[%clk 0:00:16.7]}
40. Kc3 {[%clk 0:00:19.6]} 40... Be6 {[%clk 0:00:16.2]} 41. Re1 {[%clk
0:00:09.4]} 41... Bxd5 {[%clk 0:00:16.6]} 42. exd5 {[%clk 0:00:10.3]} 42... Kxd5
{[%clk 0:00:17.5]} 43. Re4 {[%clk 0:00:10.6]} 43... f5 {[%clk 0:00:16.5]} 44.
Rc4 {[%clk 0:00:10.4]} 44... e4 {[%clk 0:00:16.4]} 45. dxe4+ {[%clk 0:00:10.2]}
45... fxe4 {[%clk 0:00:17.3]} 46. Rc8 {[%clk 0:00:09.3]} 46... e3 {[%clk
0:00:15.7]} 47. Re8 {[%clk 0:00:09]} 47... Rc7+ {[%clk 0:00:12.6]} 48. Kd3
{[%clk 0:00:09.2]} 48... Rb7 {[%clk 0:00:13]} 49. Kc3 {[%clk 0:00:09.6]} 49...
Rc7+ {[%clk 0:00:13.3]} 50. Kd3 {[%clk 0:00:09.2]} 50... Rb7 {[%clk 0:00:13.8]}
51. Rd8+ {[%clk 0:00:08.5]} 51... Ke5 {[%clk 0:00:12.3]} 52. Kxe3 {[%clk
0:00:07.6]} 52... Rxb3+ {[%clk 0:00:12.3]} 53. Kf2 {[%clk 0:00:02.7]} 53... Rb4
{[%clk 0:00:12.1]} 54. Rg8 {[%clk 0:00:02.5]} 54... Kf6 {[%clk 0:00:11.7]} 55.
Rf8+ {[%clk 0:00:02.7]} 55... Kg6 {[%clk 0:00:11.9]} 56. Ra8 {[%clk 0:00:03.3]}
56... Rxa4 {[%clk 0:00:11.4]} 57. Kg3 {[%clk 0:00:03.8]} 57... Rg4+ {[%clk
0:00:09]} 58. Kh3 {[%clk 0:00:04.1]} 58... a4 {[%clk 0:00:09.6]} 59. Ra5 {[%clk
0:00:04.6]} 59... Kh6 {[%clk 0:00:09]} 60. Ra6+ {[%clk 0:00:05]} 60... Kh7
{[%clk 0:00:08.9]} 61. Ra8 {[%clk 0:00:05.7]} 61... g6 {[%clk 0:00:08.8]} 62.
Ra7+ {[%clk 0:00:05.8]} 62... Kg8 {[%clk 0:00:09.1]} 63. g3 {[%clk 0:00:05.2]}
63... Kf8 {[%clk 0:00:09.7]} 64. Kg2 {[%clk 0:00:05.4]} 64... Ke8 {[%clk
0:00:09.9]} 65. Kf3 {[%clk 0:00:06]} 65... Kd8 {[%clk 0:00:10.6]} 66. Ra5 {[%clk
0:00:05.2]} 66... Kc7 {[%clk 0:00:10.3]} 67. Re5 {[%clk 0:00:05]} 67... Kd6
{[%clk 0:00:10.2]} 68. Ra5 {[%clk 0:00:04.7]} 68... Kc6 {[%clk 0:00:10.4]} 69.
Ke2 {[%clk 0:00:04.6]} 69... Kb6 {[%clk 0:00:10.6]} 70. Ra8 {[%clk 0:00:04.9]}
70... Kb5 {[%clk 0:00:10.5]} 71. Kf3 {[%clk 0:00:05.1]} 71... Kb4 {[%clk
0:00:10.5]} 72. Rb8+ {[%clk 0:00:05.3]} 72... Kc3 {[%clk 0:00:10.1]} 73. Rc8+
{[%clk 0:00:05.5]} 73... Kb2 {[%clk 0:00:10]} 74. Rb8+ {[%clk 0:00:05.5]} 74...
Ka2 {[%clk 0:00:10.3]} 75. Rb6 {[%clk 0:00:05.1]} 75... a3 {[%clk 0:00:10.5]}
76. Kf2 {[%clk 0:00:05.1]} 76... Ka1 {[%clk 0:00:09.9]} 77. Kf3 {[%clk
0:00:05.4]} 77... a2 {[%clk 0:00:10.2]} 78. Kf2 {[%clk 0:00:05.8]} 78... Rc4
{[%clk 0:00:10.3]} 79. Rxg6 {[%clk 0:00:05.6]} 79... Kb1 {[%clk 0:00:10.6]} 80.
Rb6+ {[%clk 0:00:05.2]} 80... Kc1 {[%clk 0:00:10.2]} 81. Ra6 {[%clk 0:00:04.5]}
81... Kb2 {[%clk 0:00:09.9]} 82. Rb6+ {[%clk 0:00:03.5]} 82... Ka3 {[%clk
0:00:10.3]} 83. Ra6+ {[%clk 0:00:02.8]} 83... Ra4 {[%clk 0:00:10.7]} 0-1

[Event "*** Titled Tuesday Blitz"]
[Site "Chess.com"]
[Date "2020.11.03"]
[Round "7"]
[White "frederiksvane"]
[Black "TigrVShlyape"]
[Result "1-0"]
[WhiteElo "2651"]
[BlackElo "2872"]
[TimeControl "180+1"]
[EndTime "11:22:40 PST"]
[Termination "frederiksvane won by resignation"]

1. e4 {[%clk 0:03:00.9]} 1... e5 {[%clk 0:02:57.5]} 2. Nf3 {[%clk 0:03:00.5]}
2... Nc6 {[%clk 0:02:56.3]} 3. Bb5 {[%clk 0:03:00.4]} 3... a6 {[%clk 0:02:55.1]}
4. Ba4 {[%clk 0:03:00.5]} 4... Nf6 {[%clk 0:02:54.2]} 5. O-O {[%clk 0:02:50.6]}
5... Be7 {[%clk 0:02:51.7]} 6. d3 {[%clk 0:02:49.5]} 6... d6 {[%clk 0:02:50.7]}
7. c3 {[%clk 0:02:47.8]} 7... O-O {[%clk 0:02:49.8]} 8. Re1 {[%clk 0:02:46.9]}
8... b5 {[%clk 0:02:46.1]} 9. Bc2 {[%clk 0:02:44.7]} 9... Nb8 {[%clk 0:02:45.7]}
10. Nbd2 {[%clk 0:02:44.8]} 10... c5 {[%clk 0:02:44.3]} 11. Nf1 {[%clk
0:02:43.6]} 11... Nc6 {[%clk 0:02:37.9]} 12. h3 {[%clk 0:02:42.6]} 12... Re8
{[%clk 0:02:33.6]} 13. d4 {[%clk 0:02:41.2]} 13... cxd4 {[%clk 0:02:32.6]} 14.
cxd4 {[%clk 0:02:41.3]} 14... exd4 {[%clk 0:02:32.3]} 15. Nxd4 {[%clk
0:02:39.3]} 15... Nxd4 {[%clk 0:02:32.3]} 16. Qxd4 {[%clk 0:02:40.2]} 16... Bb7
{[%clk 0:02:31.9]} 17. Ng3 {[%clk 0:02:37.5]} 17... g6 {[%clk 0:02:28.6]} 18.
Bh6 {[%clk 0:02:15.7]} 18... Qc7 {[%clk 0:02:07]} 19. Bb3 {[%clk 0:02:10.4]}
19... Qc5 {[%clk 0:02:05.8]} 20. Qd2 {[%clk 0:02:00.6]} 20... Bf8 {[%clk
0:01:51]} 21. Bxf8 {[%clk 0:01:52.1]} 21... Rxf8 {[%clk 0:01:45.3]} 22. Rac1
{[%clk 0:01:43.3]} 22... Qb6 {[%clk 0:01:43.6]} 23. Qf4 {[%clk 0:01:40.2]} 23...
d5 {[%clk 0:01:37.5]} 24. e5 {[%clk 0:01:25.2]} 24... Ne4 {[%clk 0:01:36.7]} 25.
Nxe4 {[%clk 0:01:09.1]} 25... dxe4 {[%clk 0:01:36.1]} 26. Bc2 {[%clk 0:01:09.1]}
26... Qd4 {[%clk 0:01:15]} 27. Bb3 {[%clk 0:00:44.7]} 27... Qd7 {[%clk
0:00:49.4]} 28. e6 {[%clk 0:00:18.9]} 28... fxe6 {[%clk 0:00:46.7]} 29. Rc7
{[%clk 0:00:18.8]} 29... Rxf4 {[%clk 0:00:18.1]} 30. Rxd7 {[%clk 0:00:19]} 30...
Rb8 {[%clk 0:00:17]} 31. Bxe6+ {[%clk 0:00:19.2]} 31... Kh8 {[%clk 0:00:17]} 32.
Rc1 {[%clk 0:00:19.8]} 32... Rf6 {[%clk 0:00:16.4]} 33. Rcc7 {[%clk 0:00:17.8]}
33... Rxe6 {[%clk 0:00:15.6]} 34. Rxh7+ {[%clk 0:00:18]} 34... Kg8 {[%clk
0:00:16]} 35. Rcg7+ {[%clk 0:00:18.1]} 35... Kf8 {[%clk 0:00:16.4]} 36. Rc7
{[%clk 0:00:13.2]} 36... Kg8 {[%clk 0:00:16.3]} 37. Rxb7 {[%clk 0:00:13.3]}
37... Rxb7 {[%clk 0:00:16.1]} 38. Rxb7 {[%clk 0:00:14.2]} 38... Rd6 {[%clk
0:00:16.5]} 39. Kf1 {[%clk 0:00:10.8]} 39... Rd2 {[%clk 0:00:15.8]} 40. Rb6
{[%clk 0:00:11.2]} 40... Kg7 {[%clk 0:00:16.1]} 41. Rxa6 {[%clk 0:00:09.8]}
41... Rxb2 {[%clk 0:00:16.6]} 42. Re6 {[%clk 0:00:09.1]} 42... Rxa2 {[%clk
0:00:15.3]} 43. Rxe4 {[%clk 0:00:09.5]} 43... Ra6 {[%clk 0:00:13.9]} 44. Rb4
{[%clk 0:00:07.2]} 44... Rb6 {[%clk 0:00:13.6]} 45. Ke2 {[%clk 0:00:07.6]} 45...
Kf6 {[%clk 0:00:14]} 46. Kd3 {[%clk 0:00:04.9]} 46... Ke5 {[%clk 0:00:14.3]} 47.
Kc3 {[%clk 0:00:05]} 47... Kd5 {[%clk 0:00:14.1]} 48. Rg4 {[%clk 0:00:05.6]}
48... Re6 {[%clk 0:00:13.6]} 49. Kb4 {[%clk 0:00:04.5]} 49... Re2 {[%clk
0:00:10.9]} 50. f3 {[%clk 0:00:02.7]} 50... Rb2+ {[%clk 0:00:10.8]} 51. Kc3
{[%clk 0:00:03.1]} 51... Rb1 {[%clk 0:00:09.1]} 52. Rg5+ {[%clk 0:00:02.6]}
52... Ke6 {[%clk 0:00:09]} 53. Rxg6+ {[%clk 0:00:03]} 53... Kf5 {[%clk
0:00:09.6]} 54. Rg4 {[%clk 0:00:03.7]} 54... Ke5 {[%clk 0:00:08.5]} 55. Rb4
{[%clk 0:00:02.7]} 55... Rg1 {[%clk 0:00:08.1]} 56. Rxb5+ {[%clk 0:00:03]} 56...
Kf4 {[%clk 0:00:08.5]} 57. Rb2 {[%clk 0:00:03.9]} 57... Kg3 {[%clk 0:00:08]} 58.
Kd4 {[%clk 0:00:04.5]} 58... Re1 {[%clk 0:00:08.4]} 59. Kd3 {[%clk 0:00:04.6]}
59... Re7 {[%clk 0:00:08.2]} 60. Re2 {[%clk 0:00:05.2]} 60... Rd7+ {[%clk
0:00:08.7]} 61. Kc2 {[%clk 0:00:05.7]} 61... Rc7+ {[%clk 0:00:09]} 62. Kb3
{[%clk 0:00:05.7]} 62... Rc6 {[%clk 0:00:08.6]} 63. Kb4 {[%clk 0:00:06.1]} 63...
Rc7 {[%clk 0:00:08.8]} 64. Kb5 {[%clk 0:00:06.4]} 64... Rc1 {[%clk 0:00:08.7]}
65. Kb4 {[%clk 0:00:05.6]} 65... Rc7 {[%clk 0:00:08.4]} 66. Kb3 {[%clk
0:00:06.2]} 66... Rc8 {[%clk 0:00:08.8]} 67. Rc2 {[%clk 0:00:06.5]} 67... Rb8+
{[%clk 0:00:09.2]} 68. Ka2 {[%clk 0:00:06.8]} 68... Rb7 {[%clk 0:00:09.2]} 69.
Rb2 {[%clk 0:00:07.2]} 69... Rc7 {[%clk 0:00:09.2]} 70. Kb1 {[%clk 0:00:07.7]}
70... Rc3 {[%clk 0:00:08.6]} 71. Rc2 {[%clk 0:00:08]} 71... Re3 {[%clk
0:00:08.9]} 72. Kc1 {[%clk 0:00:08.4]} 72... Re1+ {[%clk 0:00:09.2]} 73. Kd2
{[%clk 0:00:08.6]} 73... Re7 {[%clk 0:00:08.7]} 74. Kd3 {[%clk 0:00:08.8]} 74...
Re1 {[%clk 0:00:08.4]} 75. Re2 {[%clk 0:00:08]} 75... Ra1 {[%clk 0:00:08.3]} 76.
Ke3 {[%clk 0:00:08.2]} 76... Ra3+ {[%clk 0:00:08.4]} 77. Ke4 {[%clk 0:00:08.7]}
77... Ra4+ {[%clk 0:00:08.8]} 78. Kf5 {[%clk 0:00:09.2]} 78... Rf4+ {[%clk
0:00:08.6]} 79. Kg5 {[%clk 0:00:08.3]} 79... Ra4 {[%clk 0:00:08.8]} 80. f4
{[%clk 0:00:07.6]} 1-0

[Event "*** Titled Tuesday Blitz"]
[Site "Chess.com"]
[Date "2020.11.03"]
[Round "7"]
[White "Chessalary"]
[Black "Iskusnyh"]
[Result "1-0"]
[WhiteElo "2432"]
[BlackElo "2565"]
[TimeControl "180+1"]
[EndTime "11:22:48 PST"]
[Termination "Chessalary won on time"]

1. d4 {[%clk 0:03:00.9]} 1... d5 {[%clk 0:02:59]} 2. e3 {[%clk 0:03:00.5]} 2...
Nf6 {[%clk 0:02:57.9]} 3. Nf3 {[%clk 0:03:00.5]} 3... c5 {[%clk 0:02:57.5]} 4.
Be2 {[%clk 0:03:00.3]} 4... Nc6 {[%clk 0:02:56.6]} 5. b3 {[%clk 0:03:00.6]} 5...
cxd4 {[%clk 0:02:53.3]} 6. exd4 {[%clk 0:03:00]} 6... Bf5 {[%clk 0:02:52.8]} 7.
c3 {[%clk 0:02:54.9]} 7... e6 {[%clk 0:02:51.1]} 8. O-O {[%clk 0:02:54.1]} 8...
Be7 {[%clk 0:02:50.5]} 9. Bb2 {[%clk 0:02:53.3]} 9... O-O {[%clk 0:02:49.4]} 10.
Nbd2 {[%clk 0:02:52.9]} 10... Qc7 {[%clk 0:02:48.2]} 11. Re1 {[%clk 0:02:51.9]}
11... Rad8 {[%clk 0:02:47.4]} 12. Bb5 {[%clk 0:02:49.8]} 12... Bd6 {[%clk
0:02:29.4]} 13. h3 {[%clk 0:02:37.7]} 13... Bf4 {[%clk 0:02:26.3]} 14. Bxc6
{[%clk 0:02:29.6]} 14... bxc6 {[%clk 0:02:22.4]} 15. Ne5 {[%clk 0:02:28.9]}
15... Nd7 {[%clk 0:02:17.5]} 16. Ndf3 {[%clk 0:02:26.1]} 16... Be4 {[%clk
0:02:11.5]} 17. Nxd7 {[%clk 0:02:17.9]} 17... Rxd7 {[%clk 0:02:10.6]} 18. Nd2
{[%clk 0:02:17.1]} 18... Bg6 {[%clk 0:02:07.2]} 19. Rc1 {[%clk 0:02:05.3]} 19...
c5 {[%clk 0:01:59.4]} 20. Ba3 {[%clk 0:02:00]} 20... Bh2+ {[%clk 0:01:34.2]} 21.
Kh1 {[%clk 0:01:58]} 21... Bd6 {[%clk 0:01:34.7]} 22. Qf3 {[%clk 0:01:48.2]}
22... Qa5 {[%clk 0:01:25.6]} 23. Bxc5 {[%clk 0:01:43.9]} 23... Bxc5 {[%clk
0:01:24.7]} 24. dxc5 {[%clk 0:01:44.8]} 24... Qxc5 {[%clk 0:01:24.1]} 25. Red1
{[%clk 0:01:43.8]} 25... Rc8 {[%clk 0:01:22.3]} 26. Nf1 {[%clk 0:01:14.6]} 26...
h6 {[%clk 0:01:21.2]} 27. Qe3 {[%clk 0:01:11.5]} 27... Qa3 {[%clk 0:01:17.1]}
28. c4 {[%clk 0:01:08.1]} 28... d4 {[%clk 0:01:12.6]} 29. Qd2 {[%clk 0:01:07.4]}
29... e5 {[%clk 0:01:10.4]} 30. Re1 {[%clk 0:01:04.9]} 30... e4 {[%clk 0:01:08]}
31. Ng3 {[%clk 0:01:00.1]} 31... f5 {[%clk 0:01:05.8]} 32. Rcd1 {[%clk
0:00:45.2]} 32... d3 {[%clk 0:01:01.5]} 33. Qf4 {[%clk 0:00:43.6]} 33... Qd6
{[%clk 0:00:56.2]} 34. Qxd6 {[%clk 0:00:38]} 34... Rxd6 {[%clk 0:00:56.2]} 35.
f3 {[%clk 0:00:35]} 35... Re8 {[%clk 0:00:53.9]} 36. fxe4 {[%clk 0:00:34.5]}
36... fxe4 {[%clk 0:00:53.4]} 37. Re3 {[%clk 0:00:34.2]} 37... a5 {[%clk
0:00:50.2]} 38. Kg1 {[%clk 0:00:28.2]} 38... Kh7 {[%clk 0:00:48.3]} 39. Kf2
{[%clk 0:00:27.6]} 39... Rd4 {[%clk 0:00:40.7]} 40. Ke1 {[%clk 0:00:25.5]} 40...
a4 {[%clk 0:00:40.5]} 41. Ne2 {[%clk 0:00:15.4]} 41... Rd6 {[%clk 0:00:38]} 42.
Nf4 {[%clk 0:00:16]} 42... axb3 {[%clk 0:00:36.1]} 43. axb3 {[%clk 0:00:16]}
43... Rb6 {[%clk 0:00:35.7]} 44. Rb1 {[%clk 0:00:15.4]} 44... Reb8 {[%clk
0:00:32.6]} 45. Nxg6 {[%clk 0:00:13.8]} 45... Rxg6 {[%clk 0:00:32.4]} 46. g4
{[%clk 0:00:12.4]} 46... Re6 {[%clk 0:00:31]} 47. Kd2 {[%clk 0:00:12]} 47... Kg6
{[%clk 0:00:31]} 48. Rbe1 {[%clk 0:00:12.1]} 48... Rxb3 {[%clk 0:00:28.9]} 49.
Rxe4 {[%clk 0:00:12.4]} 49... Rd6 {[%clk 0:00:28.2]} 50. Re6+ {[%clk 0:00:11.6]}
50... Rxe6 {[%clk 0:00:28.3]} 51. Rxe6+ {[%clk 0:00:12.5]} 51... Kg5 {[%clk
0:00:29]} 52. Re3 {[%clk 0:00:12.5]} 52... Rb8 {[%clk 0:00:19.8]} 53. Kxd3
{[%clk 0:00:12.2]} 53... Rd8+ {[%clk 0:00:18.8]} 54. Kc3 {[%clk 0:00:12]} 54...
Rc8 {[%clk 0:00:19.3]} 55. Re5+ {[%clk 0:00:09.9]} 55... Kh4 {[%clk 0:00:18.3]}
56. Rh5+ {[%clk 0:00:09.6]} 56... Kg3 {[%clk 0:00:18.2]} 57. c5 {[%clk
0:00:09.6]} 57... g5 {[%clk 0:00:16.9]} 58. Kd4 {[%clk 0:00:09.3]} 58... Rd8+
{[%clk 0:00:15.7]} 59. Ke5 {[%clk 0:00:09.2]} 59... Rc8 {[%clk 0:00:15.4]} 60.
Kd6 {[%clk 0:00:09.4]} 60... Rd8+ {[%clk 0:00:15.3]} 61. Kc7 {[%clk 0:00:10]}
61... Rd1 {[%clk 0:00:14.7]} 62. c6 {[%clk 0:00:10.5]} 62... Rc1 {[%clk
0:00:14.1]} 63. Rxh6 {[%clk 0:00:10.7]} 63... Rc2 {[%clk 0:00:13.9]} 64. Kd7
{[%clk 0:00:11]} 64... Rd2+ {[%clk 0:00:13.4]} 65. Rd6 {[%clk 0:00:10.2]} 65...
Rc2 {[%clk 0:00:10]} 66. Rd3+ {[%clk 0:00:06.1]} 66... Kh4 {[%clk 0:00:08.4]}
67. Rd5 {[%clk 0:00:06.6]} 67... Rc3 {[%clk 0:00:03.7]} 68. c7 {[%clk
0:00:06.5]} 68... Rc2 {[%clk 0:00:01.6]} 69. c8=Q {[%clk 0:00:05.7]} 1-0